Cogmind - Beta 14 @@@ ROGUE MODE // 2024.09.15 @ 08:31:09 Player: Dosh Result: Escaped! Performance ------------- Evolutions (9) 4500 Regions Visited (29) 5800 Robots Destroyed (603) 3015 Value Destroyed (24906) 24906 Prototype IDs (46) 920 Alien Tech Used (0) 0 Bonus (15708) 15708 TOTAL SCORE: 54849 Bonus ------- Triggered High Security 1000 High Alert Combat Kills 10497 Follower Combat Kills 1476 Entered Garrisons 400 Used RIF Installer 500 Entered DSFs 1000 Network Hubs Disabled 400 Aligned with FarCom 300 Built Enhanced Grunts 300 Met R17 at Cetus 500 Met R17 at Research 2000 Scanned by Researcher 500 Win 3000 Friendly Fire -6165 Cogmind --------- Core Integrity 1541/1600 Matter 256/300 Energy 826/850 System Corruption 11% Temperature Cool (20) Movement Treading (155) Location To Epsilon Eridani Parts ------- > --- POWER (3) -------- Quantum Reactor Reinforced Quantum Reactor Reinforced Quantum Reactor > --- PROPULSION (6) --- Advanced Heavy Treads Advanced Heavy Siege Treads Advanced Heavy Siege Treads > --- UTILITY (10) ----- Advanced Power Amplifier Advanced Heat Sink Advanced Heat Sink Advanced Heat Sink Improved Cooling System Advanced Launcher Guidance Computer Improved Weapon Cycler Improved Transmission Jammer Force Field Experimental Hacking Suite > --- WEAPON (6) ------- Enhanced Quantum Rifle Enhanced Quantum Rifle Enhanced Quantum Rifle Enhanced Quantum Rifle Enhanced Quantum Rifle Linear Accelerator > --- INVENTORY (5) ---- Advanced Heat Sink Advanced Coolant Injector Long-range Tractor Beam Enhanced Quantum Rifle Improved Plasma Cutter Peak State ------------ > --- POWER ------------ Quantum Reactor Reinforced Quantum Reactor Reinforced Quantum Reactor > --- PROPULSION ------- Advanced Heavy Treads Advanced Heavy Siege Treads Advanced Heavy Siege Treads > --- UTILITY ---------- Advanced Power Amplifier Advanced Heat Sink Advanced Heat Sink Advanced Heat Sink Improved Cooling System Improved Weapon Cycler Improved Transmission Jammer Force Field Experimental Hacking Suite Experimental Hacking Suite > --- WEAPON ----------- Enhanced Quantum Rifle Enhanced Quantum Rifle Enhanced Quantum Rifle Enhanced Quantum Rifle Enhanced Quantum Rifle Enhanced Quantum Rifle > --- INVENTORY -------- Advanced Heat Sink Long-range Tractor Beam Linear Accelerator Advanced Remote Datajack Improved Plasma Cutter [Rating: 195] Favorites ----------- Power Antimatter Reactor Engine Cooled Ion Engine Power Core Micro Fission Core Reactor Antimatter Reactor Propulsion Improved Treads Treads Improved Treads Wheel Armored Huge Wheel Utility Huge Storage Unit Device Improved Weapon Cycler Storage Huge Storage Unit Processor Core Analyzer Hackware Hacking Suite Protection Hardened Heavy Armor Plating Weapon Enhanced Autogun Energy Gun Enhanced Quantum Rifle Energy Cannon Cooled Particle Cannon Ballistic Gun Enhanced Autogun Ballistic Cannon Light Cannon Launcher Heavy Missile Launcher Special Weapon Advanced Remote Datajack Build | -11 -10 -10 -9 -9 -9 -8 -8 -8 -8 -7 -7 -7 -6 -6 -6 -6 -5 -5 -5 -5 -5 -5 -5 -4 -3 -2 -2 -2 -1 ------- Run | Yrd Mat Min Mat Min Exi Min Mat Gar Mat Fac Was Fac Fac Was Fac DSF Fac Was Fac Ext Cet Arc Hub Fac Res Res DSF Gar Acc Slots Evolved 18 | . . . 2 . . . 2 . . 2 . . 2 . . . 2 . . . . . . 2 2 2 . . 2 Power 2 | . . . . . . . . . . . . . 1 . . . . . . . . . . . . . . . 1 Propulsion 4 | . . . 1 . . . . . . 1 . . . . . . . . . . . . . . 2 . . . . Utility 8 | . . . 1 . . . 1 . . . . . 1 . . . 1 . . . . . . 1 . 2 . . 1 Weapon 4 | . . . . . . . 1 . . 1 . . . . . . 1 . . . . . . 1 . . . . . Parts Attached 442 | 6 8 2 32 1 6 . 17 19 13 17 7 6 12 18 1 11 15 10 32 27 5 18 7 70 30 7 17 8 20 Power 47 | 1 2 1 2 . . . 1 . 1 2 2 . 1 7 . 1 1 2 2 5 1 1 1 5 4 1 2 . 1 Engine 11 | 1 2 1 2 . . . 1 . 1 1 . . 1 . . . . . . 1 . . . . . . . . . Core 7 | . . . . . . . . . . 1 . . . 1 . . . . 1 4 . . . . . . . . . Reactor 29 | . . . . . . . . . . . 2 . . 6 . 1 1 2 1 . 1 1 1 5 4 1 2 . 1 Propulsion 70 | 2 . . 14 1 1 . 5 4 3 1 . 1 1 3 . 1 . 2 2 2 . 5 . 14 6 . 2 . . Treads 66 | 2 . . 14 1 1 . 5 4 2 . . 1 . 2 . 1 . 2 2 2 . 5 . 14 6 . 2 . . Leg . | . . . . . . . . . . . . . . . . . . . . . . . . . . . . . . Wheel 4 | . . . . . . . . . 1 1 . . 1 1 . . . . . . . . . . . . . . . Hover . | . . . . . . . . . . . . . . . . . . . . . . . . . . . . . . Flight . | . . . . . . . . . . . . . . . . . . . . . . . . . . . . . . Utility 183 | 1 3 . 6 . 5 . 7 7 4 6 5 1 4 3 1 7 8 4 14 11 2 10 3 34 17 3 7 7 3 Device 119 | . . . 1 . . . 2 4 2 2 4 . 3 3 . 6 4 4 11 7 . 8 3 30 14 1 5 3 2 Storage 7 | 1 1 . . . 2 . . . . 1 . . . . . . 1 . . 1 . . . . . . . . . Processor 7 | . . . . . . . 1 . . 1 1 . 1 . . . . . . . . . . 1 1 . . . 1 Hackware 13 | . . . . . 1 . . . . 1 . . . . . . 1 . 1 . . 1 . 1 1 1 1 4 . Protection 37 | . 2 . 5 . 2 . 4 3 2 1 . 1 . . 1 1 2 . 2 3 2 1 . 2 1 1 1 . . Artifact . | . . . . . . . . . . . . . . . . . . . . . . . . . . . . . . Weapon 142 | 2 3 1 10 . . . 4 8 5 8 . 4 6 5 . 2 6 2 14 9 2 2 3 17 3 3 6 1 16 Energy Gun 18 | . . . . . . . . . . . . . . . . . . . . 2 . . . . . . 6 . 10 Energy Cannon 13 | . . . 2 . . . . . 4 1 . . 2 . . . 2 . . . . . . . . 2 . . . Ballistic Gun 84 | 2 . . 2 . . . 4 5 1 7 . 4 3 5 . 2 4 2 14 5 2 2 2 15 2 1 . . . Ballistic Cannon 13 | . 3 1 5 . . . . . . . . . . . . . . . . . . . . . . . . 1 3 Launcher 8 | . . . 1 . . . . 3 . . . . 1 . . . . . . . . . . 2 1 . . . . Special Weapon 6 | . . . . . . . . . . . . . . . . . . . . 2 . . 1 . . . . . 3 Impact Weapon . | . . . . . . . . . . . . . . . . . . . . . . . . . . . . . . Slashing Weapon . | . . . . . . . . . . . . . . . . . . . . . . . . . . . . . . Piercing Weapon . | . . . . . . . . . . . . . . . . . . . . . . . . . . . . . . Special Melee Weapon . | . . . . . . . . . . . . . . . . . . . . . . . . . . . . . . Unidentified Prototypes 17 | . . . 2 . . . 1 . 1 2 . . . . . . 1 . . . 2 . . 6 . 1 1 . . Corrupted Parts 4 | . . . . . . . . . . . . 1 . . . . . . . . 1 . 2 . . . . . . System Corruption 19 | . . . . . . . . . . . . 4 . . . . . . . . 7 . 8 . . . . . . Parts Lost 96 | . 1 . 3 . . . . 3 1 . . . . 3 . 3 2 . 13 5 . 1 2 21 30 . 8 . . Power 14 | . 1 . . . . . . . . . . . . . . 1 1 . 2 2 . . . 3 4 . . . . Propulsion 22 | . . . . . . . . 1 1 . . . . . . . . . 2 . . 1 . 9 6 . 2 . . Utility 29 | . . . 1 . . . . 2 . . . . . . . 2 . . 3 1 . . 1 2 13 . 4 . . Weapon 31 | . . . 2 . . . . . . . . . . 3 . . 1 . 6 2 . . 1 7 7 . 2 . . Highest Loss Streak 21 | . 1 . 2 . . . . 1 1 . . . . 3 . 3 1 . 5 2 . 1 2 5 21 . 4 . . To Critical Strikes 1 | . . . . . . . . . . . . . . . . . . . . 1 . . . . . . . . . Average Slot Usage (%) 89 | . 97 100 99 100 100 100 99 98 99 69 84 78 79 78 80 78 82 87 78 91 89 99 99 95 72 54 65 70 85 Engine 4 | . 14 14 10 11 11 11 9 9 9 3 1 . 6 1 . . . . . 1 . . . . . . . . . Core 1 | . . . . . . . . . . 3 . . . 3 6 3 . . . 8 5 . . . . . . . . Reactor 4 | . . . . . . . . . . . 5 7 6 7 6 8 11 11 9 . 4 10 11 9 8 3 6 8 11 Treads 18 | . 28 28 32 33 33 33 27 26 26 . . . 6 9 6 9 11 11 10 16 17 22 23 18 14 13 10 13 12 Wheel 1 | . . . . . . . . . . 13 15 15 6 3 6 3 . . . . . . . . . . . . . Device 11 | . . . 5 . . . 9 8 8 2 15 9 8 18 13 12 12 22 11 19 17 18 27 23 17 16 21 22 29 Storage 7 | . 14 14 11 11 11 11 9 9 9 7 7 7 6 6 6 6 5 5 5 5 5 5 5 5 3 . . . . Hackware 3 | . . . . . 6 11 9 9 8 3 . . . . . . 2 5 4 . . . . 3 2 7 1 2 10 Protection 7 | . 11 14 16 22 15 11 8 8 9 7 . 4 6 . 6 5 6 . 3 6 6 9 1 4 5 1 6 . . Energy Gun 1 | . . . . . . . . . . . . . . . . . . . . 4 5 5 5 . . . 8 21 17 Energy Cannon 2 | . . . 5 . . . . . 20 19 . . . . . . . . . . . . . . . 7 5 . . Ballistic Gun 17 | . 4 . 2 22 22 22 27 26 6 5 30 29 25 25 26 26 28 29 27 23 23 23 22 29 15 3 3 . . Ballistic Cannon 3 | . 23 28 14 . . . . . . . . . . . . . . . . . . . . . . . . 1 2 Peak Build Rating 195 | 6 8 13 21 17 21 21 37 39 49 63 62 65 76 81 76 82 97 101 100 103 112 115 114 129 154 119 160 176 195 Average Rating 71 | 4 7 10 17 17 19 21 34 38 41 56 61 61 73 71 75 77 93 97 93 97 105 111 110 123 135 112 140 166 188 On Entrance 68 | . 6 8 13 17 17 21 21 37 39 49 57 62 65 75 71 76 82 96 99 97 98 112 114 109 98 75 119 160 171 Naked Turns . | . . . . . . . . . . . . . . . . . . . . . . . . . . . . . . Heaviest Build 178 | 10 34 38 47 42 57 57 64 67 93 141 128 131 153 153 139 153 158 157 167 157 167 162 162 178 156 59 118 118 140 Greatest Support 230 | 40 40 40 63 63 63 63 69 69 69 56 56 70 28 140 28 140 140 140 140 120 120 120 106 121 210 215 230 230 230 Greatest Overweight (x) 40 | . . . 1 . . . 1 2 3 3 2 2 5 40 4 5 1 1 1 1 1 1 1 2 1 . 1 . . Average Overweight (x) . | . . . . . . . . . . 1 1 1 5 4 4 3 1 1 . 1 1 1 1 1 . . . . . Largest Inventory Capacity 25 | 8 15 15 15 15 20 20 20 20 20 25 25 25 25 25 25 25 25 25 25 25 25 25 25 25 25 5 5 5 5 Average Capacity 20 | 7 14 15 15 15 15 20 20 20 20 22 25 25 25 25 25 25 25 25 25 25 25 25 25 25 24 5 5 5 5 Most Carried 25 | 1 14 15 15 15 15 15 20 20 20 25 25 25 25 25 24 25 25 25 25 25 25 25 25 25 22 5 5 5 5 Average Carried 18 | . 10 14 14 14 14 15 18 19 19 21 24 23 23 23 22 23 21 23 23 19 24 24 24 23 18 2 4 4 4 Final Capacity 25 | 8 15 15 15 15 20 20 20 20 20 25 25 25 25 25 25 25 25 25 25 25 25 25 25 25 5 5 5 5 5 Final Carried 25 | 1 14 15 15 15 15 15 20 19 20 25 25 23 25 23 22 21 24 23 14 23 24 25 23 18 5 2 5 5 5 Class Distribution -------------------- 20% | Mutant 17% | Tank 12% | Skirmisher 12% | Scavenger-Skirmisher 9% | Scavenger-Tank 8% | Scavenger-Executioner 7% | Scavenger-Gunner Dominant Class ---------------- Mutant | -10/Materials Mutant | -10/Mines Mutant | -9/Materials Mutant | -9/Mines Mutant | -9/Exiles Mutant | -8/Mines Tank | -8/Materials Tank | -8/Garrison Tank | -8/Materials Skirmisher | -7/Factory Gunner | -7/Waste Skirmisher | -7/Factory Skirmisher | -6/Factory Skirmisher | -6/Waste Skirmisher | -6/Factory Skirmisher | -6/DSF Scavenger-Skirmisher | -5/Factory Scavenger-Skirmisher | -5/Waste Scavenger-Skirmisher | -5/Factory Scavenger-Tank | -5/Extension Scavenger-Gunner | -5/Cetus Scavenger-Tank | -5/Archives Scavenger-Gunner | -5/Hub_04(d) Scavenger-Executioner | -4/Factory Scavenger-Executioner | -3/Research Hacker-Skirmisher | -2/Research Tank | -2/DSF Executioner | -2/Garrison Hacker-Executioner | -1/Access Resources | -11 -10 -10 -9 -9 -9 -8 -8 -8 -8 -7 -7 -7 -6 -6 -6 -6 -5 -5 -5 -5 -5 -5 -5 -4 -3 -2 -2 -2 -1 ----------- Run | Yrd Mat Min Mat Min Exi Min Mat Gar Mat Fac Was Fac Fac Was Fac DSF Fac Was Fac Ext Cet Arc Hub Fac Res Res DSF Gar Acc Matter Collected 22280 | 202 623 154 1040 94 . . 939 1121 420 338 490 292 1091 559 . 657 819 905 1567 1322 445 714 184 4628 2682 76 136 332 450 Remotely 6783 | . . . . . . . . . . . 242 . . . . 264 119 848 529 256 . . . 2450 2075 . . . . Salvage Created 32011 | . 761 272 1533 158 . . 1185 1471 1408 741 1388 84 1239 760 . 667 831 1617 1915 1542 574 564 451 6480 3126 117 952 444 1731 Parts 1536 | . 58 18 111 20 . . 80 87 75 32 28 1 50 17 . 35 47 45 101 72 18 32 18 349 140 1 33 17 51 Haulers Intercepted 31 | . 2 . 6 . . . 5 . 6 1 . . 1 . . . 1 . 1 . . . . 7 . 1 . . . Recyclers Shooed 26 | . 1 . 2 1 . . 1 . 2 . . . 5 . . . . . 5 2 . . . 7 . . . . . Parts Field Recycled . | . . . . . . . . . . . . . . . . . . . . . . . . . . . . . . Retrieved Matter . | . . . . . . . . . . . . . . . . . . . . . . . . . . . . . . Parts Self-Destructed . | . . . . . . . . . . . . . . . . . . . . . . . . . . . . . . Prevented . | . . . . . . . . . . . . . . . . . . . . . . . . . . . . . . Kills | -11 -10 -10 -9 -9 -9 -8 -8 -8 -8 -7 -7 -7 -6 -6 -6 -6 -5 -5 -5 -5 -5 -5 -5 -4 -3 -2 -2 -2 -1 ------- Run | Yrd Mat Min Mat Min Exi Min Mat Gar Mat Fac Was Fac Fac Was Fac DSF Fac Was Fac Ext Cet Arc Hub Fac Res Res DSF Gar Acc Combat Hostiles Destroyed 426 | . 21 7 34 8 . . 19 38 19 13 5 . 10 3 . 11 8 5 19 23 3 2 1 84 51 . 15 5 22 Melee 6 | . . . . . . . . . 1 . . . . . . . . 1 4 . . . . . . . . . . Guns 286 | . 3 . 3 8 . . 19 32 4 . 5 . 7 3 . 11 8 4 15 23 3 2 . 70 42 . 1 4 19 Cannons 89 | . 18 7 29 . . . . . 14 8 . . . . . . . . . . . . . . . . 11 1 1 AOE 39 | . . . 2 . . . . 6 . 4 . . 3 . . . . . . . . . 1 14 9 . . . . Classes Destroyed 26 | . 6 2 3 2 . . 1 4 1 . 1 . . . . 1 . . . 1 . . . 2 2 . . . . Worker 32 | . . . 2 . . . . . 1 1 . . 5 . . . 1 . 3 1 . . 1 17 . . . . . Builder 33 | . . 1 . 1 . . 2 . 3 . . . 2 . . . . . 3 2 . . . 18 . . . . 1 Tunneler 3 | . 1 . . . . . . . . . . . . . . . . . . . . . . 2 . . . . . Hauler 31 | . 2 . 6 . . . 5 . 6 1 . . 1 . . . 1 . 1 . . . . 7 . 1 . . . Recycler 24 | . . 1 2 . . . 1 . 1 1 . 1 4 . . . 2 . 5 . . . 1 5 . . . . . Mechanic 2 | . . . . . . . . . . . . . . . . . . . . . . . . 1 1 . . . . Operator 19 | . 3 . 3 . . . 1 . 1 1 . . . . . . . . 1 . . 9 . . . . . . . Watcher 23 | . 3 . 4 . . . 5 1 2 2 . . 1 . . . 1 . 2 . . . . 2 . . . . . Swarmer 87 | . 5 1 6 6 . . 10 8 . 4 . . 3 . . 4 5 . 1 4 . . . 18 3 . 9 . . Saboteur 4 | . . . . . . . . 1 . . . . . . . . . . . . . . . 1 2 . . . . Grunt 138 | . 16 6 17 . . . 3 16 10 3 . . 4 . . 3 . . 5 7 . . . 25 13 . . 1 9 Brawler 13 | . . . 1 . . . . . 3 . . . . . . . . . . . . . . 4 3 . . . 2 Duelist 13 | . . . . . . . 1 1 1 . . . . . . . . . 1 . . . . 3 6 . . . . Protector 5 | . . . . . . . . 1 1 . . . . . . . . . . . . . . . 3 . . . . Sentry 51 | . . . 10 . . . 5 6 3 3 . . . . . . 1 . 1 9 . 2 . 8 2 . . . 1 Demolisher 1 | . . . . 1 . . . . . . . . . . . . . . . . . . . . . . . . . Specialist 12 | . . . . . . . . 2 . . . . . . . 2 . . . . . . . 4 . . 4 . . Hunter 25 | . . . . . . . . . 1 . . . 2 . . 1 . . 3 1 . . . 6 7 . . . 4 Programmer 50 | . . . . . . . . 3 . 3 . . 1 . . . 2 . 8 . . . . 13 10 . . 4 6 Heavy 5 | . . . . . . . . . . . . . . . . 1 . . . . . . 1 1 . . 2 . . Behemoth 1 | . . . . . . . . . . . . . . . . . . . . 1 . . . . . . . . . Compactor 13 | . . . . . . . . . . . 5 . . 3 . . . 5 . . . . . . . . . . . Cetus Guard 3 | . . . . . . . . . . . . . . . . . . . . . 3 . . . . . . . . Enhanced Grunt 2 | . . . . . . . . . . . . . . . . . . . . . . . 2 . . . . . . Investigator 1 | . . . . . . . . . . . . . . . . . . . . . . . . . 1 . . . . Striker 2 | . . . . . . . . . . . . . . . . . . . . . . . . 1 1 . . . . Executioner 1 | . . . . . . . . . . . . . . . . . . . . . . . . . 1 . . . . Assembled 1 | . . . . 1 . . . . . . . . . . . . . . . . . . . . . . . . . Thug 4 | . . . . . . . . . . . . . . . . . . . . . 3 1 . . . . . . . Savage 2 | . . . . . . . . . . . . . . . . . . . . 1 1 . . . . . . . . Guerrilla 1 | . . . . . . . . . . . . . . . . . . . . . 1 . . . . . . . . Best Kill Streak 21 | . 5 3 4 4 . . 7 6 4 5 2 1 4 1 . 6 6 2 8 2 2 3 2 21 16 1 9 2 7 Combat Bots Only 16 | . 4 2 3 4 . . 6 6 3 5 2 . 4 1 . 6 5 2 5 2 2 2 1 14 16 . 9 2 7 Max Kills in Single Turn 8 | . 2 1 2 1 . . 2 3 2 3 1 1 3 1 . 1 2 1 2 2 1 2 2 8 3 1 1 2 2 Gunslinging 1 | . . . 1 . . . 1 1 . . . . . . . . . . 1 1 . . . 1 . . . 1 1 Exploded 3 | . . . 2 . . . . 3 . 3 . . 3 . . . . . . . . . 1 3 3 . . . . Melee 1 | . . . . . . . . . 1 . . . . . . . . 1 1 . . . . . . . . . . Uniques/NPCs Destroyed 2 | . . . . . . . . . . . . . . . . . . . . . 1 . . . 1 . . . . A7 (-5/Cetus) Revision 17++ (-3/Research) Combat | -11 -10 -10 -9 -9 -9 -8 -8 -8 -8 -7 -7 -7 -6 -6 -6 -6 -5 -5 -5 -5 -5 -5 -5 -4 -3 -2 -2 -2 -1 -------- Run | Yrd Mat Min Mat Min Exi Min Mat Gar Mat Fac Was Fac Fac Was Fac DSF Fac Was Fac Ext Cet Arc Hub Fac Res Res DSF Gar Acc Hostile Shots Fired 2150 | . 64 23 130 20 . . 46 102 66 95 . 11 67 3 . 128 29 . 232 75 8 5 12 408 248 . 205 37 136 Missed 591 | . 19 6 35 5 . . 19 31 23 39 . 6 12 . . 30 8 . 54 15 . 2 2 131 43 . 75 9 27 Damage Taken 26840 | . 509 183 1211 157 . . 200 965 562 778 . 57 738 90 . 1598 346 . 3513 1307 229 257 459 4917 4070 . 2539 669 1486 Core 1996 | . 72 47 142 10 . . 10 98 27 28 . . 62 35 . 48 15 . 299 137 25 160 . 342 313 . 67 . 59 Absorbed by Shields 3809 | . . . . . . . 84 168 141 . . . 153 16 . 248 . . . 130 67 . 64 1363 379 . . . 996 Reduced by Siege Mode 1499 | . . . . . . . . . . . . . 15 10 . 103 . . 10 46 8 . . 173 481 . 244 . 409 Redirected to Shielding 107 | . . . . . . . . . . . . . . . . . . . . . . . . . 107 . . . . Ignored by Resistances 8 | . . . . . . . . . . . . . . . . . . . . . . . . . . . 8 . . Regen/Repaired (Parts) 1118 | . . . 107 . . . . . 37 349 . . . . . . . . 396 . . . . . . . . . 229 Core Remaining (%) 76 | 100 . 52 . . . 62 . . 75 . . 96 . . . 82 . . . . . . 36 70 75 . . 95 96 Volleys Fired 1317 | . 72 17 124 14 . . 74 82 63 41 44 2 57 26 . 34 31 34 77 52 17 28 10 139 120 2 55 36 66 Largest 6 | . 2 2 2 2 . . 3 3 3 4 4 4 4 4 . 4 5 5 5 5 5 5 5 6 4 3 6 6 6 Hottest 390 | . 70 70 107 46 . . 75 83 90 270 103 103 168 100 . 113 143 159 165 213 220 220 220 248 138 260 390 390 390 Shots Fired 4218 | . 142 34 248 28 . . 222 223 191 127 170 7 219 97 . 115 143 166 300 208 65 122 44 741 165 6 94 93 248 Gun 3460 | . 34 . 18 28 . . 222 215 57 12 170 7 212 97 . 115 140 166 300 208 65 122 44 731 152 2 41 75 227 Cannon 715 | . 108 34 229 . . . . . 134 115 . . 6 . . . 3 . . . . . . . . 4 53 18 11 Launcher 33 | . . . 1 . . . . 8 . . . . 1 . . . . . . . . . . 10 13 . . . . Special 10 | . . . . . . . . . . . . . . . . . . . . . . . . . . . . . 10 Kinetic 3385 | . 142 34 175 28 . . 222 215 57 12 170 7 212 97 . 115 140 166 300 189 61 98 34 725 152 2 3 18 11 Thermal 790 | . . . 72 . . . . . 134 115 . . 6 . . . 3 . . 19 4 24 10 6 . 4 91 75 227 Explosive 33 | . . . 1 . . . . 8 . . . . 1 . . . . . . . . . . 10 13 . . . . Electromagnetic . | . . . . . . . . . . . . . . . . . . . . . . . . . . . . . . Robot Hit Streak 58 | . 7 4 18 8 . . 14 13 11 6 13 1 12 21 . 13 8 30 10 17 11 8 9 18 34 3 19 13 58 Robot Miss Streak 19 | . 4 4 4 4 . . 6 5 4 4 3 2 3 3 . 19 7 4 5 3 5 9 3 6 4 1 3 4 2 Penetration Max 2 | . . . . . . . . . . . . . . . . 1 1 2 1 2 1 2 1 2 1 . . . . Secondary Targets 60 | . 1 . 2 . . . 3 6 . . 3 . 2 . . 5 . . 4 2 . . . 22 3 . . 1 6 Max Gunslinging Chain 2 | . 1 . 1 . . . 1 1 . . 1 . 1 . . 1 . . 1 1 . . . 2 1 . . 1 1 Capacitor 49 | . . . . . . . . . . . . . . . . . . . . . . . . . . . 44 5 . Shots Hit Robots 2529 | . 83 17 156 12 . . 111 118 113 55 127 2 150 72 . 60 64 136 146 128 39 50 28 431 125 3 69 41 193 Core Hits 1232 | . 36 12 59 10 . . 53 71 45 20 26 1 57 15 . 30 30 25 68 68 23 27 16 270 172 1 19 14 64 Critical Kills 48 | . . . . 1 . . . . . 1 . . 1 . . 2 2 4 12 4 . 2 . 16 3 . . . . Critical Parts Destroyed 57 | . . . . . . . 1 . . . . . 1 . . 5 1 7 6 4 2 3 1 21 5 . . . . Critical Strikes 152 | . 1 1 9 1 . . 1 . . 1 . . 2 1 . 7 3 37 18 10 3 7 1 40 9 . . . . Burn 4 | . . . . . . . . . . . . . . . . . . . . . 1 2 . 1 . . . . . Meltdown 1 | . . . . . . . . . . 1 . . . . . . . . . . . . . . . . . . . Destroy 136 | . . . . 1 . . 1 . . . . . 2 1 . 7 3 37 18 10 2 5 1 39 9 . . . . Blast 11 | . 1 1 9 . . . . . . . . . . . . . . . . . . . . . . . . . . Melee Attacks . | . . . . . . . . . . . . . . . . . . . . . . . . . . . . . . Impact . | . . . . . . . . . . . . . . . . . . . . . . . . . . . . . . Slashing . | . . . . . . . . . . . . . . . . . . . . . . . . . . . . . . Piercing . | . . . . . . . . . . . . . . . . . . . . . . . . . . . . . . Sneak Attacks . | . . . . . . . . . . . . . . . . . . . . . . . . . . . . . . Combat Hostiles . | . . . . . . . . . . . . . . . . . . . . . . . . . . . . . . Follow-up Attacks . | . . . . . . . . . . . . . . . . . . . . . . . . . . . . . . Damage Inflicted 79584 | . 1262 339 3132 239 . . 1819 2969 2965 2160 2515 35 2834 1347 . 1008 1121 1930 3481 3179 1818 1699 1204 20437 11397 104 2617 1706 6267 Guns 58671 | . 169 . 201 194 . . 1777 2119 599 107 2515 35 2530 1347 . 1008 1121 1900 3018 3126 1818 1699 839 15583 8448 18 952 1609 5939 Cannons 10137 | . 1088 319 2821 . . . . . 2261 1464 . . 33 . . . . . . . . . . . . 86 1649 97 319 Explosions 9802 | . . . 67 . . . . 845 . 582 . . 230 . . . . . . . . . 365 4798 2915 . . . . Melee . | . . . . . . . . . . . . . . . . . . . . . . . . . . . . . . Ramming 974 | . 5 20 43 45 . . 42 5 105 7 . . 41 . . . . 30 463 53 . . . 56 34 . 16 . 9 Kinetic 53177 | . 1257 319 2141 194 . . 1777 2119 599 107 2515 35 2530 1347 . 1008 1121 1900 3018 2890 1729 1476 711 15461 8448 18 41 97 319 Thermal 16293 | . . . 881 . . . . . 2261 1464 . . 33 . . . . . . 236 89 223 128 784 . 86 2560 1609 5939 Explosive 8775 | . . . 67 . . . . 845 . 582 . . 230 . . . . . . . . . . 4136 2915 . . . . Electromagnetic 365 | . . . . . . . . . . . . . . . . . . . . . . . 365 . . . . . . Impact . | . . . . . . . . . . . . . . . . . . . . . . . . . . . . . . Slashing . | . . . . . . . . . . . . . . . . . . . . . . . . . . . . . . Piercing . | . . . . . . . . . . . . . . . . . . . . . . . . . . . . . . Highest Corruption 64 | . 3 3 . . . . . 4 11 4 35 39 . 64 64 64 2 41 61 62 54 54 49 24 23 . 2 10 11 Average Corruption 24 | . 2 3 . . . . . 3 9 3 18 35 . 34 64 64 1 23 46 60 49 42 35 10 7 . 1 4 9 Corruption Purged 39 | . . . . . . . . . . 5 . . . . . . . . . 15 . 19 . . . . . . . Corruption Blocked . | . . . . . . . . . . . . . . . . . . . . . . . . . . . . . . Effects 953 | . 24 22 . . . . . 10 68 13 19 19 . 40 2 43 11 25 156 185 39 90 31 74 34 . 4 18 26 Message Errors 203 | . 7 3 . . . . . 1 18 3 2 8 . 7 1 9 4 2 21 47 8 15 7 16 8 . . 6 10 Matter Fused 194 | . 6 6 . . . . . 4 13 7 3 3 . 6 1 5 2 5 30 41 5 17 5 13 11 . 1 5 5 Heat Flow Errors 94 | . 2 1 . . . . . 2 10 . 1 2 . 8 . 3 1 5 11 15 2 10 5 7 2 . 1 3 3 Energy Discharges 99 | . 3 5 . . . . . . 8 . 1 3 . 6 . 1 3 2 14 17 7 8 6 7 3 . 1 2 2 Parts Rejected 8 | . . 1 . . . . . . . . 1 . . 1 . . . . 1 1 . . . 3 . . . . . Parts Fused 8 | . . 1 . . . . . . . . 1 . . . . . . . 2 1 1 . . 1 1 . . . . Data Loss (minor) 90 | . 3 5 . . . . . 3 11 1 1 2 . 2 . . 1 . 8 21 4 14 2 6 1 . 1 1 3 Data Loss (major) 37 | . 1 . . . . . . . 2 2 1 . . 2 . 1 . 4 9 6 1 2 1 2 2 . . 1 . Misfires 34 | . . . . . . . . . 4 . 1 . . 1 . 2 . 1 4 9 1 4 1 3 3 . . . . Alerts 15 | . . . . . . . . . . . . . . 1 . 2 . 1 6 2 2 1 . . . . . . . Misdirections 14 | . . . . . . . . . . . . . . 4 . 1 . . 8 1 . . . . . . . . . Weapon Failures 157 | . 2 . . . . . . . 2 . 7 1 . 2 . 19 . 5 42 24 8 19 4 16 3 . . . 3 Overload Shots 14 | . . . . . . . . . . 6 . . 5 . . . 3 . . . . . . . . . . . . Effects 1 | . . . . . . . . . . . . . 1 . . . . . . . . . . . . . . . . Energy Bleed 1 | . . . . . . . . . . . . . 1 . . . . . . . . . . . . . . . . Overflow Damage 943 | . 56 . 61 . . . . 9 47 210 . . 1 . . . . . 21 13 . . . 346 80 . 36 . 63 Projectiles 360 | . 56 . 61 . . . . . 47 97 . . . . . . . . . . . . . . . . 36 . 63 Explosions 549 | . . . . . . . . 9 . 113 . . 1 . . . . . . . . . . 346 80 . . . . Melee 34 | . . . . . . . . . . . . . . . . . . . 21 13 . . . . . . . . . Knockbacks 44 | . 15 4 12 1 . . 1 . 1 . . . . . . . . . 7 . . . . . . . . . 3 Impact 9 | . . . . 1 . . 1 . 1 . . . . . . . . . 6 . . . . . . . . . . Kinetic 32 | . 14 4 12 . . . . . . . . . . . . . . . . . . . . . . . . . 2 Secondary 3 | . 1 . . . . . . . . . . . . . . . . . 1 . . . . . . . . . 1 Self-Inflicted Damage 445 | . . . 24 . . . . . . 94 . . 20 . . . . . . . . . 94 87 126 . . . . Shots 6 | . . . 1 . . . . . . 1 . . . . . . . . . . . . 1 1 2 . . . . Rammed 98 | . 3 2 5 6 . . 4 1 18 1 . . 2 . . . . 3 43 3 . . . 3 . . 2 . 2 Targets Rammed 113 | . 3 3 5 6 . . 4 1 22 1 . . 2 . . . . 3 48 4 . . . 6 1 . 2 . 2 Kicked . | . . . . . . . . . . . . . . . . . . . . . . . . . . . . . . Crushed 15 | . . 1 . . . . . . 4 . . . . . . . . . 5 1 . . . 3 1 . . . . Highest Temperature 576 | . 225 207 207 . . . 250 300 269 431 324 172 448 263 . 420 240 273 352 357 245 576 255 439 346 186 488 442 434 Average Temperature 95 | . 50 55 47 . . . 51 86 70 82 87 67 132 103 . 112 78 114 105 81 92 146 107 131 88 95 152 81 157 Received Heat Transfer 3357 | . 222 54 414 . . . 36 197 252 174 . 12 160 . . 333 . . 333 218 . . . 590 251 . . 27 84 Effects 38 | . . . . . . . 1 2 . 1 2 . 4 . . 3 . . 1 1 . 5 . 6 . . 7 . 5 Shutdowns 10 | . . . . . . . . . . . . . 2 . . . . . . . . 2 . 3 . . 2 . 1 Energy Bleed 8 | . . . . . . . . 2 . . . . 1 . . . . . . . . 2 . 2 . . . . 1 Interference 16 | . . . . . . . 1 . . . 2 . . . . 3 . . 1 1 . . . 1 . . 4 . 3 Matter Decay 2 | . . . . . . . . . . 1 . . . . . . . . . . . . . . . . 1 . . Damage (minor) 1 | . . . . . . . . . . . . . 1 . . . . . . . . . . . . . . . . Damage (core) 1 | . . . . . . . . . . . . . . . . . . . . . . 1 . . . . . . . Siege Activations 38 | . . . . . . . . . . . . . 2 2 . 2 1 2 4 4 1 . . 7 5 . 2 . 6 Total Turns 1194 | . . . . . . . . . . . . . 31 21 . 47 7 55 53 56 21 . . 123 553 . 51 . 176 Longest Duration 416 | . . . . . . . . . . . . . 21 19 . 40 7 29 26 24 21 . . 26 416 . 30 . 54 Robots Corrupted 2 | . . . . . . . . . . . . . . . . . . . . . . . 2 . . . . . . Combat Hostiles . | . . . . . . . . . . . . . . . . . . . . . . . . . . . . . . Parts Fried 9 | . . . . . . . . . . . . . . . . . . . 1 1 . . 7 . . . . . . Impact Corruptions 3 | . . . . . . . . . . . . . . . . . . . 1 1 . . . . . . . . 1 Robots Melted 7 | . . . . . . . . . . 1 . . . . . . . . . . . . . . . . 4 . 2 Combat Hostiles 6 | . . . . . . . . . . 1 . . . . . . . . . . . . . . . . 3 . 2 Parts Melted 53 | . . . 3 . . . . . 5 4 . . . . . . . . . . . 1 . . 1 1 12 4 22 Heat Transferred 19400 | . . . 1591 . . . . . 3042 1887 . . 37 . . . . . . 352 222 518 185 759 . 74 2553 1739 6441 Parts Sabotaged 11 | . . . . . . . . 6 . . . . . . . . . . . . . . . 3 2 . . . . Parts Stolen . | . . . . . . . . . . . . . . . . . . . . . . . . . . . . . . Parts Stripped . | . . . . . . . . . . . . . . . . . . . . . . . . . . . . . . Power Chain Reactions . | . . . . . . . . . . . . . . . . . . . . . . . . . . . . . . Alert | -11 -10 -10 -9 -9 -9 -8 -8 -8 -8 -7 -7 -7 -6 -6 -6 -6 -5 -5 -5 -5 -5 -5 -5 -4 -3 -2 -2 -2 -1 ------- Run | Yrd Mat Min Mat Min Exi Min Mat Gar Mat Fac Was Fac Fac Was Fac DSF Fac Was Fac Ext Cet Arc Hub Fac Res Res DSF Gar Acc Peak Influence 3547 | . 362 303 730 444 . . 377 1351 904 496 108 63 172 48 10 244 208 39 379 376 529 487 568 3413 3547 1988 1825 1617 1433 Initial 1950 | . . 108 22 284 . . . 100 658 382 108 10 18 33 10 7 128 39 . 179 176 132 12 167 1782 1950 1491 1368 969 Average 477 | . 204 95 292 193 . . 133 711 637 269 98 13 74 23 10 133 89 34 141 202 337 235 276 1384 2417 1964 1661 1452 1160 Maximum Alert Level 5 | . 1 1 3 2 . . 1 4 3 2 . . . . . 1 1 . 1 1 2 2 2 5 5 5 5 5 4 Low Security (%) 43 | 100 40 89 41 44 . 100 69 12 . 27 100 100 100 100 100 64 94 100 58 45 7 46 29 5 . . . . . Level 1 28 | . 59 10 26 50 . . 30 25 . 59 . . . . . 35 5 . 41 54 83 44 58 22 . . . . . Level 2 9 | . . . 27 5 . . . 16 66 13 . . . . . . . . . . 9 8 12 15 . . . . . Level 3 4 | . . . 3 . . . . 16 33 . . . . . . . . . . . . . . 4 . . . . 42 Level 4 7 | . . . . . . . . 29 . . . . . . . . . . . . . . . 14 . . 48 89 57 Level 5 3 | . . . . . . . . . . . . . . . . . . . . . . . . 20 16 100 51 10 . High Security 3 | . . . . . . . . . . . . . . . . . . . . . . . . 15 83 . . . . Max Security . | . . . . . . . . . . . . . . . . . . . . . . . . . . . . . . Sterilizations 2 | . . . . . . . . . . . . . . . . 1 . . . . . . . . . . 1 . . Squads Dispatched 100 | . 9 . 5 . . . 2 . 6 7 . 3 8 . . 2 7 . 8 4 . . 4 23 . 3 1 . 8 Investigation 24 | . 6 . 2 . . . . . . 5 . 1 2 . . . 2 . 3 1 . . . 1 . . . . 1 Extermination 18 | . . . . . . . . . . 2 . 1 1 . . . 2 . 3 . . . 1 5 . 1 . . 2 Reinforcement 30 | . 3 . 3 . . . 2 . 2 . . . 1 . . 2 3 . 2 3 . . 3 4 . . 1 . 1 Assault 23 | . . . . . . . . . 4 . . . . . . . . . . . . . . 13 . 2 . . 4 Garrison 5 | . . . . . . . . . . . . 1 4 . . . . . . . . . . . . . . . . Intercept . | . . . . . . . . . . . . . . . . . . . . . . . . . . . . . . Searches Triggered . | . . . . . . . . . . . . . . . . . . . . . . . . . . . . . . Construction Impeded 4 | . . . . . . . 1 . 1 . . . . . . . . . 1 1 . . . . . . . . . Haulers Reinforced 1 | . . . . . . . . . . . . . . . . . . . . . . . . 1 . . . . . Active Scanning Responses . | . . . . . . . . . . . . . . . . . . . . . . . . . . . . . . Cargo Convoy Interrupts 1 | . . . . . . . . . . . . . . . . . . . . . . . . 1 . . . . . Stealth | -11 -10 -10 -9 -9 -9 -8 -8 -8 -8 -7 -7 -7 -6 -6 -6 -6 -5 -5 -5 -5 -5 -5 -5 -4 -3 -2 -2 -2 -1 --------- Run | Yrd Mat Min Mat Min Exi Min Mat Gar Mat Fac Was Fac Fac Was Fac DSF Fac Was Fac Ext Cet Arc Hub Fac Res Res DSF Gar Acc Distress Signals 36 | . 1 . 6 . . . 3 1 2 1 . . 1 . . . 1 . 2 3 2 . 2 5 6 . . . . Communications Jammed 235 | . . . . . . . . . . . . . . . . . . . . 9 . . 5 190 . . 10 . 21 Distress Signals 216 | . . . . . . . . . . . . . . . . . . . . 9 . . 4 182 . . . . 21 Times Spotted 685 | . 31 12 48 9 . . 32 43 34 26 7 5 18 6 . 11 18 9 32 30 7 20 10 117 102 . 17 6 35 Peak Tracking Total 21 | . 3 5 4 3 . . 6 6 9 8 2 5 6 3 . 4 5 2 6 4 5 1 4 13 21 3 5 2 11 Tactical Retreats 58 | . . 1 1 1 . . 1 2 6 1 1 1 3 . . . 2 4 1 3 . . . 4 22 . 2 . 2 Traps | -11 -10 -10 -9 -9 -9 -8 -8 -8 -8 -7 -7 -7 -6 -6 -6 -6 -5 -5 -5 -5 -5 -5 -5 -4 -3 -2 -2 -2 -1 ------- Run | Yrd Mat Min Mat Min Exi Min Mat Gar Mat Fac Was Fac Fac Was Fac DSF Fac Was Fac Ext Cet Arc Hub Fac Res Res DSF Gar Acc Traps Triggered 36 | . 6 . 1 . . . . 3 1 1 . 6 2 . . . 2 . 5 3 . . . 3 2 . . 1 . Indirectly . | . . . . . . . . . . . . . . . . . . . . . . . . . . . . . . Trap Hack Attempts . | . . . . . . . . . . . . . . . . . . . . . . . . . . . . . . Triggered . | . . . . . . . . . . . . . . . . . . . . . . . . . . . . . . Disarmed . | . . . . . . . . . . . . . . . . . . . . . . . . . . . . . . Reprogrammed . | . . . . . . . . . . . . . . . . . . . . . . . . . . . . . . Reused . | . . . . . . . . . . . . . . . . . . . . . . . . . . . . . . Traps Extracted . | . . . . . . . . . . . . . . . . . . . . . . . . . . . . . . Installed . | . . . . . . . . . . . . . . . . . . . . . . . . . . . . . . Triggered . | . . . . . . . . . . . . . . . . . . . . . . . . . . . . . . Machines | -11 -10 -10 -9 -9 -9 -8 -8 -8 -8 -7 -7 -7 -6 -6 -6 -6 -5 -5 -5 -5 -5 -5 -5 -4 -3 -2 -2 -2 -1 ---------- Run | Yrd Mat Min Mat Min Exi Min Mat Gar Mat Fac Was Fac Fac Was Fac DSF Fac Was Fac Ext Cet Arc Hub Fac Res Res DSF Gar Acc Machines Disabled 79 | . 2 . 2 . . . 1 2 2 7 . . 1 . . . 4 . 5 4 . 4 8 35 1 . . 1 . Max in Single Turn 5 | . 1 . 1 . . . 1 1 1 2 . . 1 . . . 2 . 2 1 . 1 4 5 1 . . 1 . Garrison Access 4 | . . . . . . . . . 1 . . . 1 . . . 1 . . . . . . 1 . . . . . Garrison Relay 1 | . . . . . . . . . . . . . . . . . . . . . . . . . . . . 1 . Phase Generator 1 | . . . . . . . . 1 . . . . . . . . . . . . . . . . . . . . . Network Hub 2 | . . . . . . . . . . . . . . . . . . . . . . . 2 . . . . . . Machines Repaired . | . . . . . . . . . . . . . . . . . . . . . . . . . . . . . . Machines Dismantled 3 | . . . . . . . . . . . . . . . . . . . . 2 . . 1 . . . . . . Machines Sabotaged . | . . . . . . . . . . . . . . . . . . . . . . . . . . . . . . Overloaded Fab Kills . | . . . . . . . . . . . . . . . . . . . . . . . . . . . . . . Hacking | -11 -10 -10 -9 -9 -9 -8 -8 -8 -8 -7 -7 -7 -6 -6 -6 -6 -5 -5 -5 -5 -5 -5 -5 -4 -3 -2 -2 -2 -1 --------- Run | Yrd Mat Min Mat Min Exi Min Mat Gar Mat Fac Was Fac Fac Was Fac DSF Fac Was Fac Ext Cet Arc Hub Fac Res Res DSF Gar Acc Machines Accessed 96 | . 7 1 9 . 2 . 10 3 7 15 . 3 7 . 1 . 4 . 4 13 . . 1 3 1 3 . . 2 Terminals 67 | . 5 1 6 . . . 9 3 5 8 . 2 4 . 1 . 2 . 2 12 . . 1 1 1 2 . . 2 Fabricators 6 | . . . . . . . . . . 4 . 1 . . . . 1 . . . . . . . . . . . . Repair Stations 11 | . . . 1 . . . . . 1 3 . . 1 . . . . . 2 1 . . . 2 . . . . . Recycling Units 6 | . 2 . 2 . . . . . . . . . 1 . . . . . . . . . . . . 1 . . . Scanalyzers 1 | . . . . . . . . . 1 . . . . . . . . . . . . . . . . . . . . Garrison Access 3 | . . . . . . . 1 . . . . . 1 . . . 1 . . . . . . . . . . . . Total Hacks 265 | . 18 2 22 . 5 . 36 7 19 53 . 5 18 . 1 . 12 . 7 22 . . 2 16 4 10 . . 6 Successful 118 | . 9 2 12 . 5 . 21 2 9 28 . . 7 . 1 . 5 . 3 6 . . 1 1 . 4 . . 2 Failed 146 | . 9 . 10 . . . 14 5 10 25 . 5 11 . . . 7 . 4 16 . . 1 15 4 6 . . 4 Catastrophic 39 | . 2 . 2 . . . 1 1 2 5 . 1 4 . . . 1 . 2 9 . . . 5 1 . . . 3 Database Lockouts 1 | . . . . . . . 1 . . . . . . . . . . . . . . . . . . . . . . Manual 131 | . 13 2 17 . 1 . 26 2 5 27 . 2 8 . . . 3 . 1 6 1 . 2 7 4 . . . 4 Terminals 188 | . 16 2 16 . . . 35 7 12 29 . 4 7 . 1 . 6 . 4 21 . . 2 7 4 9 . . 6 Fabricators 15 | . . . . . . . . . . 10 . 1 . . . . 4 . . . . . . . . . . . . Repair Stations 40 | . . . 4 . . . . . 5 14 . . 4 . . . . . 3 1 . . . 9 . . . . . Recycling Units 11 | . 2 . 2 . . . . . . . . . 6 . . . . . . . . . . . . 1 . . . Scanalyzers 2 | . . . . . . . . . 2 . . . . . . . . . . . . . . . . . . . . Garrison Access 4 | . . . . . . . 1 . . . . . 1 . . . 2 . . . . . . . . . . . . Terminal Hacks 42 | . 1 2 1 . 5 . 11 2 3 6 . . . . 1 . . . . 4 . . 1 . . 3 . . 2 Record 4 | . . . . . 4 . . . . . . . . . . . . . . . . . . . . . . . . Part Schematic 1 | . . . . . . . . . . 1 . . . . . . . . . . . . . . . . . . . Robot Schematic 1 | . . 1 . . . . . . . . . . . . . . . . . . . . . . . . . . . Robot Analysis 4 | . . 1 1 . . . 2 . . . . . . . . . . . . . . . . . . . . . . Prototype ID Bank 2 | . . . . . . . 1 . . . . . . . . . . . . . . . . . . 1 . . . Open Door 4 | . . . . . . . . . . . . . . . . . . . . 3 . . . . . . . . 1 Open DSF 2 | . . . . . . . . . . . . . . . 1 . . . . . . . . . . 1 . . . Level Access Points 1 | . . . . . . . . . . . . . . . . . . . . . . . . . . . . . 1 Branch Access Points 1 | . . . . . . . . . . . . . . . . . . . . . . . . . . 1 . . . Emergency Access Points 1 | . . . . . . . . 1 . . . . . . . . . . . . . . . . . . . . . Terminal Index 2 | . . . . . . . 1 . . 1 . . . . . . . . . . . . . . . . . . . Alert Level 4 | . . . . . . . 1 . 1 2 . . . . . . . . . . . . . . . . . . . Unreport Threat 9 | . . . . . . . 4 . 1 2 . . . . . . . . . 1 . . 1 . . . . . . Locate Traps 1 | . . . . . . . 1 . . . . . . . . . . . . . . . . . . . . . . Hauler Manifests 2 | . . . . . . . 1 . 1 . . . . . . . . . . . . . . . . . . . . Zone Layout 1 | . 1 . . . . . . . . . . . . . . . . . . . . . . . . . . . . Patrol Navigation 1 | . . . . . . . . 1 . . . . . . . . . . . . . . . . . . . . . Derelict Proto ID Bank 1 | . . . . . 1 . . . . . . . . . . . . . . . . . . . . . . . . Fabricator Hacks 9 | . . . . . . . . . . 7 . . . . . . 2 . . . . . . . . . . . . Load Schematic 5 | . . . . . . . . . . 4 . . . . . . 1 . . . . . . . . . . . . Build 4 | . . . . . . . . . . 3 . . . . . . 1 . . . . . . . . . . . . Repair Station Hacks 22 | . . . 4 . . . . . 4 10 . . 1 . . . . . 2 . . . . 1 . . . . . Scan Component 13 | . . . 2 . . . . . 2 6 . . 1 . . . . . 1 . . . . 1 . . . . . Repair 9 | . . . 2 . . . . . 2 4 . . . . . . . . 1 . . . . . . . . . . Recycling Unit Hacks 4 | . . . . . . . . . . . . . 3 . . . . . . . . . . . . 1 . . . Retrieve Matter 1 | . . . . . . . . . . . . . 1 . . . . . . . . . . . . . . . . Retrieve Components 3 | . . . . . . . . . . . . . 2 . . . . . . . . . . . . 1 . . . Scanalyzer 2 | . . . . . . . . . 2 . . . . . . . . . . . . . . . . . . . . Insert Component 1 | . . . . . . . . . 1 . . . . . . . . . . . . . . . . . . . . Analyze 1 | . . . . . . . . . 1 . . . . . . . . . . . . . . . . . . . . Garrison Access Hacks 3 | . . . . . . . 1 . . . . . 1 . . . 1 . . . . . . . . . . . . Unlock Access 1 | . . . . . . . 1 . . . . . . . . . . . . . . . . . . . . . . Seal Access 2 | . . . . . . . . . . . . . 1 . . . 1 . . . . . . . . . . . . Unauthorized Hacks 36 | . 8 . 7 . . . 9 . . 5 . . 2 . . . 2 . 1 2 . . . . . . . . . Terminals 29 | . 6 . 5 . . . 9 . . 5 . . . . . . 2 . . 2 . . . . . . . . . Assimilate 1 | . . . . . . . 1 . . . . . . . . . . . . . . . . . . . . . . Botnet 6 | . 1 . . . . . 2 . . . . . . . . . 1 . . 2 . . . . . . . . . Operators 1 | . . . . . . . 1 . . . . . . . . . . . . . . . . . . . . . . Skim 21 | . 5 . 5 . . . 5 . . 5 . . . . . . 1 . . . . . . . . . . . . Fabricators . | . . . . . . . . . . . . . . . . . . . . . . . . . . . . . . Repair Stations 1 | . . . . . . . . . . . . . . . . . . . 1 . . . . . . . . . . Patch 1 | . . . . . . . . . . . . . . . . . . . 1 . . . . . . . . . . Recycling Units 6 | . 2 . 2 . . . . . . . . . 2 . . . . . . . . . . . . . . . . Reject 1 | . . . . . . . . . . . . . 1 . . . . . . . . . . . . . . . . Recyclers 1 | . . . . . . . . . . . . . 1 . . . . . . . . . . . . . . . . Tunnel 4 | . 2 . 2 . . . . . . . . . . . . . . . . . . . . . . . . . . Scanalyzers . | . . . . . . . . . . . . . . . . . . . . . . . . . . . . . . Garrison Access . | . . . . . . . . . . . . . . . . . . . . . . . . . . . . . . Data Cores Recovered 2 | . . . . . . . . . 1 1 . . . . . . . . . . . . . . . . . . . Used 1 | . . . . . . . . . . 1 . . . . . . . . . . . . . . . . . . . Hacking Detections 80 | . 5 1 6 . . . 9 3 7 15 . 3 6 . . . 3 . 3 10 . . 1 3 1 2 . . 2 Full Trace Events 15 | . . . . . . . . 1 . 5 . . 2 . . . 2 . 2 1 . . . 1 . . . . 1 Feedback Events 1 | . . . . . . . . . . . . . . . . . . . . 1 . . . . . . . . . Corruption 1 | . . . . . . . . . . . . . . . . . . . . 1 . . . . . . . . . Feedback Blocked . | . . . . . . . . . . . . . . . . . . . . . . . . . . . . . . Robot Schematics Acquired 1 | . . 1 . . . . . . . . . . . . . . . . . . . . . . . . . . . Robots Built . | . . . . . . . . . . . . . . . . . . . . . . . . . . . . . . Authchips . | . . . . . . . . . . . . . . . . . . . . . . . . . . . . . . Time . | . . . . . . . . . . . . . . . . . . . . . . . . . . . . . . Total Robot Build Rating . | . . . . . . . . . . . . . . . . . . . . . . . . . . . . . . Part Schematics Acquired 2 | . . . . . . . . . 1 1 . . . . . . . . . . . . . . . . . . . Parts Built 4 | . . . . . . . . . . 3 . . . . . . 1 . . . . . . . . . . . . Authchips . | . . . . . . . . . . . . . . . . . . . . . . . . . . . . . . Time 385 | . . . . . . . . . . 283 . . . . . . 102 . . . . . . . . . . . . Total Part Build Rating 15 | . . . . . . . . . . 7 . . . . . . 8 . . . . . . . . . . . . Parts Repaired 8 | . . . 2 . . . . . 1 4 . . . . . . . . 1 . . . . . . . . . . Time 434 | . . . 64 . . . . . 76 250 . . . . . . . . 44 . . . . . . . . . . Parts Recycled . | . . . . . . . . . . . . . . . . . . . . . . . . . . . . . . Recycled Matter . | . . . . . . . . . . . . . . . . . . . . . . . . . . . . . . Retrieved Matter . | . . . . . . . . . . . . . . . . . . . . . . . . . . . . . . Retrieved Components 1 | . . . . . . . . . . . . . . . . . . . . . . . . . . 1 . . . Parts Scanalyzed 1 | . . . . . . . . . 1 . . . . . . . . . . . . . . . . . . . . Part Schematics Acquired 1 | . . . . . . . . . 1 . . . . . . . . . . . . . . . . . . . . Parts Damaged . | . . . . . . . . . . . . . . . . . . . . . . . . . . . . . . Bothacking | -11 -10 -10 -9 -9 -9 -8 -8 -8 -8 -7 -7 -7 -6 -6 -6 -6 -5 -5 -5 -5 -5 -5 -5 -4 -3 -2 -2 -2 -1 ------------ Run | Yrd Mat Min Mat Min Exi Min Mat Gar Mat Fac Was Fac Fac Was Fac DSF Fac Was Fac Ext Cet Arc Hub Fac Res Res DSF Gar Acc Used RIF Installer 1 | . . . . . . . . . . . . . . . . . . . . . . . . . . . . 1 . Robots Hacked 4 | . . . . . . . . . . . . . . . . . . . . . . . . . . . . . 4 Non-combat 4 | . . . . . . . . . . . . . . . . . . . . . . . . . . . . . 4 Combat . | . . . . . . . . . . . . . . . . . . . . . . . . . . . . . . Robot Hacks Applied 5 | . . . . . . . . . . . . . . . . . . . . . . . . . . . . . 5 drop_inventory 1 | . . . . . . . . . . . . . . . . . . . . . . . . . . . . . 1 formatsys_low 4 | . . . . . . . . . . . . . . . . . . . . . . . . . . . . . 4 Relay Couplers Released 9 | . . . . . . . . . 2 . . . . . . . . . . . . . . 2 . . . 5 . Machine Destruction 9 | . . . . . . . . . 2 . . . . . . . . . . . . . . 2 . . . 5 . Attached 2 | . . . . . . . . . . . . . . . . . . . . . . . . . . . . 2 . Fabnet Peak Effective % . | . . . . . . . . . . . . . . . . . . . . . . . . . . . . . . Robots Rewired 12 | . . . . . . . . . . . . . 1 . . . . . . 11 . . . . . . . . . Allies Hacked . | . . . . . . . . . . . . . . . . . . . . . . . . . . . . . . Hacks Repelled . | . . . . . . . . . . . . . . . . . . . . . . . . . . . . . . Allies | -11 -10 -10 -9 -9 -9 -8 -8 -8 -8 -7 -7 -7 -6 -6 -6 -6 -5 -5 -5 -5 -5 -5 -5 -4 -3 -2 -2 -2 -1 -------- Run | Yrd Mat Min Mat Min Exi Min Mat Gar Mat Fac Was Fac Fac Was Fac DSF Fac Was Fac Ext Cet Arc Hub Fac Res Res DSF Gar Acc Total Allies 40 | . . 3 . 3 . . 1 . . . . 3 1 . . . 3 . . 16 5 . . . . . . 2 3 Largest Group 10 | . . 2 . 3 3 3 3 . . . . 3 1 . . . 3 . . 10 10 6 5 . . . . 2 2 Highest-Rated Group 655 | . . 42 . 40 40 40 40 . . . . 93 29 . . . 93 . . 431 655 486 452 . . . . 124 61 Highest-Rated Ally 159 | . . 31 . 16 16 16 16 . . . . 31 29 . . . 31 . . 159 153 96 96 . . . . 62 36 Total Orders 15 | . . . . . . . 1 . . . . . . . . . . . 2 . . 2 1 4 1 . . . 4 STAY 4 | . . . . . . . 1 . . . . . . . . . . . . . . 1 . . . . . . 2 FOLLOW 1 | . . . . . . . . . . . . . . . . . . . . . . 1 . . . . . . . AID 2 | . . . . . . . . . . . . . . . . . . . . . . . . . . . . . 2 EXPLORE 8 | . . . . . . . . . . . . . . . . . . . 2 . . . 1 4 1 . . . . Ally Attacks 316 | . . 15 . 2 . . 11 . . . . 19 3 . . . 15 . . 109 69 14 49 . . . . 10 . Total Damage 7801 | . . 185 . 14 . . 122 . . . . 292 39 . . . 260 . . 2015 2063 526 1788 . . . . 497 . Kills 45 | . . 5 . . . . 1 . . . . 3 1 . . . 4 . . 9 9 2 9 . . . . 2 . Allies Corrupted 2 | . . . . . . . . . . . . . . . . . . . . . . . 2 . . . . . . Allies Melted . | . . . . . . . . . . . . . . . . . . . . . . . . . . . . . . Intel | -11 -10 -10 -9 -9 -9 -8 -8 -8 -8 -7 -7 -7 -6 -6 -6 -6 -5 -5 -5 -5 -5 -5 -5 -4 -3 -2 -2 -2 -1 ------- Run | Yrd Mat Min Mat Min Exi Min Mat Gar Mat Fac Was Fac Fac Was Fac DSF Fac Was Fac Ext Cet Arc Hub Fac Res Res DSF Gar Acc Robot Analysis Total 4 | . . 1 1 . . . 2 . . . . . . . . . . . . . . . . . . . . . . Derelict Logs Recovered 3 | . . 2 . 1 . . . . . . . . . . . . . . . . . . . . . . . . . Drone Launches 8 | . . . . . . . . . . . . . . . . . . . 2 . . . 1 4 1 . . . . Drone Recoveries 6 | . . . . . . . . . . . . . . . . . . . 2 . . . 1 3 . . . . . Exploration | -11 -10 -10 -9 -9 -9 -8 -8 -8 -8 -7 -7 -7 -6 -6 -6 -6 -5 -5 -5 -5 -5 -5 -5 -4 -3 -2 -2 -2 -1 ------------- Run | Yrd Mat Min Mat Min Exi Min Mat Gar Mat Fac Was Fac Fac Was Fac DSF Fac Was Fac Ext Cet Arc Hub Fac Res Res DSF Gar Acc Turns Passed 34957 | 78 1699 1131 2614 1444 525 152 2356 1918 2013 2160 440 390 1362 740 29 422 1632 450 2152 2867 596 1428 548 2053 1188 320 358 1042 850 Spaces Moved 14732 | 45 720 668 1276 712 321 93 1067 1040 779 1325 276 303 621 198 18 160 632 130 715 885 176 240 200 574 338 190 119 576 335 Core 92 | 3 . . . . . . . . . . . . . 7 . . . . . . . . . . 63 19 . . . Treads 11818 | 42 720 668 1276 712 321 93 1067 1040 761 . . 1 . 33 . 56 632 130 715 885 176 240 200 574 275 171 119 576 335 Legs . | . . . . . . . . . . . . . . . . . . . . . . . . . . . . . . Wheels 2822 | . . . . . . . . . 18 1325 276 302 621 158 18 104 . . . . . . . . . . . . . Hover . | . . . . . . . . . . . . . . . . . . . . . . . . . . . . . . Flight . | . . . . . . . . . . . . . . . . . . . . . . . . . . . . . . Fastest Speed 50 | 50 160 160 160 160 160 160 160 160 130 115 115 115 175 145 160 160 240 240 160 240 243 242 242 240 50 50 152 155 155 Average Speed 179 | 152 160 160 160 160 160 160 160 162 210 128 115 124 175 225 160 189 240 240 235 242 243 242 242 242 152 145 160 155 155 Slowest Speed 2050 | 160 160 160 240 160 160 160 240 320 240 145 130 240 175 2050 160 240 240 240 245 245 243 243 242 320 243 156 225 155 155 Overloaded Moves . | . . . . . . . . . . . . . . . . . . . . . . . . . . . . . . Propulsion Burnouts . | . . . . . . . . . . . . . . . . . . . . . . . . . . . . . . Robots Hopped . | . . . . . . . . . . . . . . . . . . . . . . . . . . . . . . Cave-ins Triggered . | . . . . . . . . . . . . . . . . . . . . . . . . . . . . . . Exploration Rate (%) 51 | 5 98 98 93 98 70 28 62 84 50 39 86 7 16 82 1 91 20 88 24 87 56 84 20 30 14 4 75 37 12 Regions Visited 29 Branch Regions 8 Pre-discovered Areas 13 | . 3 1 5 1 1 . 1 . . 1 . . . . . . . . . . . . . . . . . . . Known Exits Taken 12 | . . 1 1 . . 1 1 . 1 . . 1 . . 1 . . . 1 1 . 1 1 . . 1 . . . Unknown Exits Taken 7 | 1 1 . . 1 1 . . . . . . . . . . . . . . . 1 . . 1 1 . . . . Scrap Searched 4 | . . 3 . 1 . . . . . . . . . . . . . . . . . . . . . . . . . Spaces Dug 47 | . . . . . . . . . . 7 . . 2 . . . 3 . 2 . . . . . 13 . . 15 5 Terrain Destroyed 1153 | . . . 13 . . . . 65 39 34 . . 10 . . 4 4 2 55 65 18 43 171 520 73 2 13 17 5 Melee . | . . . . . . . . . . . . . . . . . . . . . . . . . . . . . . Projectile 572 | . . . 3 . . . . . 39 14 . . 4 . . 2 4 2 23 65 18 43 9 293 16 2 13 17 5 AOE 577 | . . . 10 . . . . 65 . 20 . . 6 . . . . . 30 . . . 162 227 57 . . . . Terrain Rammed 1 | . . . . . . . . . . . . . . . . . . . . . . . . . 1 . . . . Walls Destroyed . | . . . . . . . . . . . . . . . . . . . . . . . . . . . . . . Machines Disabled 1 | . . . . . . . . . . . . . . . . . . . . . . . . . 1 . . . . Actions | -11 -10 -10 -9 -9 -9 -8 -8 -8 -8 -7 -7 -7 -6 -6 -6 -6 -5 -5 -5 -5 -5 -5 -5 -4 -3 -2 -2 -2 -1 --------- Run | Yrd Mat Min Mat Min Exi Min Mat Gar Mat Fac Was Fac Fac Was Fac DSF Fac Was Fac Ext Cet Arc Hub Fac Res Res DSF Gar Acc Total 21182 | 51 1128 695 1600 986 336 96 1600 1178 1005 1695 355 315 817 473 19 234 713 200 994 1485 317 1037 244 925 975 231 261 660 557 Wait 4065 | . 308 2 135 250 . 4 407 32 105 280 23 . 110 223 . 17 24 13 100 357 109 738 19 103 461 31 58 32 124 Move 14703 | 44 719 667 1275 711 320 92 1067 1037 778 1325 275 302 621 197 17 159 632 129 714 884 175 239 199 573 337 189 118 574 334 Hop . | . . . . . . . . . . . . . . . . . . . . . . . . . . . . . . Pick Up 140 | 1 11 2 8 1 1 . 11 2 9 12 2 2 2 2 . 6 7 2 9 8 5 4 3 9 10 1 3 4 3 Fast Attach 168 | 6 5 1 9 . 2 . 4 9 5 14 2 3 3 6 . 2 1 1 8 11 2 7 . 25 12 4 15 6 5 Attach 97 | . 1 . 5 . 2 . 3 3 2 1 3 3 1 7 1 3 5 3 12 3 1 3 2 15 9 3 1 2 3 Detach 56 | . 4 . . . 1 . 3 1 1 5 1 1 2 1 1 . 2 2 . 5 1 3 . 6 7 . 5 1 3 Swap 177 | . 2 1 18 1 2 . 10 7 6 2 2 . 8 5 . 6 9 6 12 13 2 8 5 30 9 . 1 . 12 Drop 176 | . 3 2 21 2 8 . 17 4 14 14 3 2 1 6 . 6 2 7 10 5 5 7 3 15 6 1 3 5 4 Fire 1317 | . 72 17 124 14 . . 74 82 63 41 44 2 57 26 . 34 31 34 77 52 17 28 10 139 120 2 55 36 66 Melee . | . . . . . . . . . . . . . . . . . . . . . . . . . . . . . . Ram 4 | . . . . . . . . . . 1 . . 2 . . . . . . . . . . . 1 . . . . Kick . | . . . . . . . . . . . . . . . . . . . . . . . . . . . . . . Crush 110 | . 3 3 5 6 . . 4 1 22 . . . . . . . . 3 48 4 . . . 6 1 . 2 . 2 Escape Stasis 24 | . . . . . . . . . . . . . 8 . . . . . 4 6 . . . 4 2 . . . . Rewire 126 | . . . . 1 . . . . . . . . 2 . . 1 . . . 121 . . . . . . . . 1 Trap . | . . . . . . . . . . . . . . . . . . . . . . . . . . . . . . Miscellaneous 19 | . . . . . . . . . . . . . . . . . . . . 16 . . 3 . . . . . . Route ------- -11/Scrapyard -10/Materials (discovered 5 exits: *Mat x3 / *Min / Sub) -10/Mines (discovered 2 exits: *Mat x2) -9/Materials (discovered 5 exits: *Mat x3 / *Min x2) -9/Mines (discovered 4 exits: *Mat x2 / *Exi / [*Zio]) -9/Exiles (discovered 2 exits: [*Min x2]) -8/Mines -8/Materials (discovered 3 exits: *Fac x2 / Gar) -8/Garrison (discovered 3 exits: *Mat x3) -8/Materials -7/Factory (discovered 6 exits: *Fac x3 / Sto / *Low x2) -7/Waste -7/Factory (discovered 2 exits: *Fac / *Low) -6/Factory -6/Waste -6/Factory -6/DSF -5/Factory (discovered 2 exits: *Fac / Ext) -5/Waste -5/Factory (discovered 2 exits: [*Upp] / *Ext) -5/Extension (discovered 2 exits: *Fac / *Cet) -5/Cetus (discovered 2 exits: *Fac / [*Arc]) -5/Archives (discovered 3 exits: *Fac / *Hub x2) -5/Hub_04(d) -4/Factory -3/Research -2/Research (discovered 3 exits: Qua x2 / DSF) -2/DSF -2/Garrison -1/Access To Epsilon Eridani History --------- Turn | Location | Event 12 | -11/Scrapyard | Discovered new exit (range 15) 79 | -11/Scrapyard | Entered Materials 331 | -10/Materials | Build established: Mutant 353 | -10/Materials | Discovered new exit (range 16) 394 | -10/Materials | Discovered new exit (range 11) 560 | -10/Materials | Discovered new exit (range 13) 1178 | -10/Materials | Discovered new exit (range 4) 1540 | -10/Materials | Learned 4 Subcaves zone layouts 1585 | -10/Materials | Identified exit to Subcaves 1620 | -10/Materials | Identified exit to Materials 1663 | -10/Materials | Learned Storage trap positions 1668 | -10/Materials | Learned location of Subcaves (-10) 1682 | -10/Materials | Learned 4 Recycling zone layouts 1705 | -10/Materials | Learned 2 Materials zone layouts 1778 | -10/Materials | Entered Mines 1785 | -10/Mines | Learned location of Storage (-7) 1813 | -10/Mines | Received a Rocket Launcher from a helpful Derelict 2298 | -10/Mines | Received a Mining Laser from a helpful Derelict 2568 | -10/Mines | Learned location of 1 exit from Materials 2909 | -10/Mines | Entered Materials 2909 | -9/Materials | Evolved 2 slots: Propulsion x1, Utility x1 2910 | -9/Materials | Identified exit to Materials 2911 | -9/Materials | Identified exit to Mines 3019 | -9/Materials | Repaired Hacking Suite 3046 | -9/Materials | Repaired Lgt. Treads 3523 | -9/Materials | Discovered exit to Mines (range 13) 3635 | -9/Materials | Discovered exit to Materials (range 10) 4238 | -9/Materials | Build established: Scavenger-Mutant 4991 | -9/Materials | Build established: Mutant 5047 | -9/Materials | Learned location of Zion (-7) 5089 | -9/Materials | Learned Storage trap positions 5122 | -9/Materials | Learned location of 1 exit from Recycling 5162 | -9/Materials | Learned Recycling recycling unit intel 5204 | -9/Materials | Learned 2 Materials zone layouts 5523 | -9/Materials | Entered Mines 5524 | -9/Mines | A Derelict revealed a hidden shortcut to a safe place 5568 | -9/Mines | Deemed a non-threat by the Exiles lab entrance 5570 | -9/Mines | Discovered new exit (range 5) 5710 | -9/Mines | Learned location of Recycling (-7) 5747 | -9/Mines | Discovered exit to Materials (range 9) 5915 | -9/Mines | Assembled infested the area 6274 | -9/Mines | Found a hidden stash of uninstalled traps 6410 | -9/Mines | Assisted by bots powering up and referring to "LRC-V3" 6967 | -9/Mines | Entered Exiles 6967 | -9/Exiles | Accompanied by 3 allies 6993 | -9/Exiles | Discovered new exit (range 15) 7011 | -9/Exiles | Met 8R-AWN 7033 | -9/Exiles | Met EX-HEX 7076 | -9/Exiles | Met EX-BIN 7147 | -9/Exiles | Aligned with FarCom system 7148 | -9/Exiles | Given EX-Vault access code 7185 | -9/Exiles | Opened EX-Vault 7199 | -9/Exiles | Found XL Autogun Array 7237 | -9/Exiles | Warned to stay clear of 0b10 Research branches 7285 | -9/Exiles | Met EX-DEC 7479 | -9/Exiles | Discovered new exit (range 10) 7492 | -9/Exiles | Left Exiles lab with XL Autogun Array 7492 | -9/Exiles | Entered Mines 7492 | -8/Mines | Accompanied by 3 allies 7595 | -8/Mines | Discovered exit to Materials (range 5) 7644 | -8/Mines | Entered Materials 7644 | -8/Materials | Accompanied by 3 allies 7644 | -8/Materials | Evolved 2 slots: Utility x1, Weapon x1 7776 | -8/Materials | Lost 3 allies 8187 | -8/Materials | Build established: Scavenger-Tank 8501 | -8/Materials | Build established: Tank 8579 | -8/Materials | Central database locked down 8608 | -8/Materials | Discovered new exit (range 10) 8681 | -8/Materials | Learned Factory stockpile data 8731 | -8/Materials | Learned location of 1 exit from Extension 8771 | -8/Materials | Learned location of 2 exits from Factory 8824 | -8/Materials | Learned Factory trap positions 8835 | -8/Materials | Learned Factory repair station intel 8836 | -8/Materials | Identified exit to Factory 8848 | -8/Materials | Learned Storage stockpile data 8871 | -8/Materials | Learned 4 Factory zone layouts 9647 | -8/Materials | Identified exit to Garrison 10000 | -8/Materials | Entered Garrison 10210 | -8/Garrison | Triggered checkpoint 10256 | -8/Garrison | Triggered checkpoint 10296 | -8/Garrison | Triggered checkpoint 10431 | -8/Garrison | Discovered new exit (range 12) 10644 | -8/Garrison | Triggered checkpoint 10704 | -8/Garrison | Triggered checkpoint 10724 | -8/Garrison | Discovered new exit (range 11) 10830 | -8/Garrison | Triggered checkpoint 10972 | -8/Garrison | Discovered new exit (range 11) 11032 | -8/Garrison | Triggered checkpoint 11306 | -8/Garrison | Attempted to access garrison exit controls, blocked by remote lockdown 11433 | -8/Garrison | Build established: Skirmisher 11589 | -8/Garrison | Attempted to access garrison exit controls, blocked by remote lockdown 11621 | -8/Garrison | Phase Generator disabled 11918 | -8/Garrison | Entered Materials 11976 | -8/Materials | Build established: Tank 12405 | -8/Materials | System corruption reached 10% 13118 | -8/Materials | First assault squad dispatched 13731 | -8/Materials | Discovered exit to Factory (range 16) 13808 | -8/Materials | Repaired Imp. Shield Generator 13931 | -8/Materials | Entered Factory 13931 | -7/Factory | Evolved 2 slots: Propulsion x1, Weapon x1 13932 | -7/Factory | Identified exit to Storage 13932 | -7/Factory | Identified exit to Lower Caves 13933 | -7/Factory | Identified exit to Factory 13935 | -7/Factory | Loaded intel: 120 trap records 13937 | -7/Factory | Loaded intel: 6 repair station locations 14297 | -7/Factory | Build established: Skirmisher 14530 | -7/Factory | Fabricated Huge Storage Unit? 14580 | -7/Factory | Repaired Enh. Autogun 14641 | -7/Factory | Repaired Enh. Autogun 14702 | -7/Factory | Repaired Enh. Autogun 14773 | -7/Factory | Repaired Cld. Particle Cannon 14807 | -7/Factory | Discovered exit to Factory (range 16) 15168 | -7/Factory | Fabricated Enh. Autogun? 15204 | -7/Factory | Fabricated Enh. Autogun? 15492 | -7/Factory | Learned Extension stockpile data 15541 | -7/Factory | Learned Hub_04(d) machine intel 15579 | -7/Factory | Learned Extension non-interactive machine intel 15606 | -7/Factory | Learned location of 2 exits from Archives 15624 | -7/Factory | Learned location of 2 exits from Archives 16091 | -7/Factory | Sucked down chute 16091 | -7/Factory | Entered Waste 16106 | -7/Waste | EMP discharged 16155 | -7/Waste | Spotted C-40 Crusher 16163 | -7/Waste | Spotted C-40 Crusher 16172 | -7/Waste | Destroyed C-40 Crusher 16177 | -7/Waste | Destroyed C-40 Crusher 16186 | -7/Waste | Spotted C-40 Crusher 16201 | -7/Waste | Spotted C-40 Crusher 16203 | -7/Waste | Destroyed C-40 Crusher 16206 | -7/Waste | EMP discharged 16206 | -7/Waste | System corruption reached 10% 16215 | -7/Waste | Spotted C-40 Crusher 16216 | -7/Waste | Destroyed C-40 Crusher 16219 | -7/Waste | Spotted C-40 Crusher 16252 | -7/Waste | Destroyed C-40 Crusher 16306 | -7/Waste | EMP discharged 16399 | -7/Waste | Build established: Gunner 16406 | -7/Waste | EMP discharged 16502 | -7/Waste | Discovered new exit (range 10) 16506 | -7/Waste | EMP discharged 16506 | -7/Waste | System corruption reached 30% 16531 | -7/Waste | Entered Factory 16578 | -7/Factory | Discovered exit to Factory (range 10) 16620 | -7/Factory | Allied Derelicts emerged from ambush trap array 16875 | -7/Factory | Garrison activated, responded to threat 16921 | -7/Factory | Entered another Factory area 16921 | -6/Factory | Evolved 2 slots: Power x1, Utility x1 16923 | -6/Factory | Lost 3 allies 16963 | -6/Factory | Build established: Skirmisher 17470 | -6/Factory | Garrison activated, responded to threat 17636 | -6/Factory | Discovered new exit (range 16) 18061 | -6/Factory | Build established: Tank 18099 | -6/Factory | Garrison activated, responded to threat 18283 | -6/Factory | Sucked down chute 18283 | -6/Factory | Entered Waste 18298 | -6/Waste | EMP discharged 18398 | -6/Waste | EMP discharged 18398 | -6/Waste | System corruption reached 10% 18430 | -6/Waste | Spotted C-40 Crusher 18446 | -6/Waste | Destroyed C-40 Crusher 18477 | -6/Waste | Spotted C-40 Crusher 18484 | -6/Waste | Destroyed C-40 Crusher 18498 | -6/Waste | EMP discharged 18598 | -6/Waste | EMP discharged 18598 | -6/Waste | System corruption reached 30% 18609 | -6/Waste | Spotted C-40 Crusher 18624 | -6/Waste | Crushed by Compactor (1 part destroyed, 1 dropped) 18627 | -6/Waste | Crushed by Compactor (1 part destroyed, 2 dropped) 18630 | -6/Waste | Crushed by Compactor (1 part destroyed, 1 dropped) 18632 | -6/Waste | Destroyed C-40 Crusher 18661 | -6/Waste | Lost 3 parts (3w) 18698 | -6/Waste | EMP discharged 18752 | -6/Waste | Build established: Scavenger-Skirmisher 18798 | -6/Waste | EMP discharged 18838 | -6/Waste | Spotted C-40 Crusher 18846 | -6/Waste | Spotted C-40 Crusher 18882 | -6/Waste | Spotted C-40 Crusher 18898 | -6/Waste | EMP discharged 18998 | -6/Waste | EMP discharged 19009 | -6/Waste | Discovered new exit (range 10) 19023 | -6/Waste | Entered Factory 19052 | -6/Factory | Identified exit to DSF 19052 | -6/Factory | Entered DSF 19089 | -6/DSF | Additional patrols routed to DSF 19102 | -6/DSF | Build established: Skirmisher 19344 | -6/DSF | Sterilization system engaged 19353 | -6/DSF | Lost 3 parts (1p2u) 19364 | -6/DSF | Ambient heat levels rising (+10) 19379 | -6/DSF | Ambient heat levels rising (+10) 19394 | -6/DSF | Ambient heat levels rising (+10) 19409 | -6/DSF | Ambient heat levels rising (+10) 19424 | -6/DSF | Ambient heat levels rising (+10) 19439 | -6/DSF | Ambient heat levels rising (+10) 19443 | -6/DSF | Discovered new exit (range 14) 19454 | -6/DSF | Ambient heat levels rising (+10) 19469 | -6/DSF | Ambient heat levels rising (+10) 19474 | -6/DSF | Entered Factory 19474 | -5/Factory | Evolved 2 slots: Utility x1, Weapon x1 19475 | -5/Factory | Identified exit to Extension 19592 | -5/Factory | Allied Derelicts emerged from ambush trap array 19635 | -5/Factory | Build established: Scavenger-Skirmisher 19797 | -5/Factory | Discovered new exit (range 13) 20168 | -5/Factory | Build established: Scavenger-Tank 20660 | -5/Factory | Build established: Scavenger-Skirmisher 20829 | -5/Factory | Fabricated Helical Railgun? 21106 | -5/Factory | Sucked down chute 21106 | -5/Factory | Entered Waste 21121 | -5/Waste | EMP discharged 21121 | -5/Waste | System corruption reached 10% 21179 | -5/Waste | Spotted C-40 Crusher 21193 | -5/Waste | Spotted C-40 Crusher 21200 | -5/Waste | Destroyed C-40 Crusher 21204 | -5/Waste | Spotted C-40 Crusher 21206 | -5/Waste | Destroyed C-40 Crusher 21214 | -5/Waste | Spotted C-40 Crusher 21221 | -5/Waste | EMP discharged 21232 | -5/Waste | Spotted C-40 Crusher 21248 | -5/Waste | Destroyed C-40 Crusher 21305 | -5/Waste | Spotted C-40 Crusher 21321 | -5/Waste | EMP discharged 21397 | -5/Waste | Destroyed C-40 Crusher 21421 | -5/Waste | EMP discharged 21421 | -5/Waste | System corruption reached 30% 21505 | -5/Waste | Destroyed C-40 Crusher 21521 | -5/Waste | EMP discharged 21534 | -5/Waste | Discovered new exit (range 10) 21556 | -5/Waste | Entered Factory 22043 | -5/Factory | Repaired Hrd. Heavy Armor Plating 22094 | -5/Factory | Discovered new exit (range 25) 23291 | -5/Factory | Lost 3 parts (1p1u1w) 23358 | -5/Factory | Lost 5 parts (1p4w) 23425 | -5/Factory | Lost 4 parts (2n2u) 23651 | -5/Factory | Discovered exit to Extension (range 16) 23708 | -5/Factory | Entered Extension 23709 | -5/Extension | Identified exit to Cetus 23711 | -5/Extension | Loaded intel: 17 non-interactive machine locations 24281 | -5/Extension | Build established: Scavenger-Tank 24719 | -5/Extension | Rescued a captive Derelict 25082 | -5/Extension | Rescued A7 25532 | -5/Extension | Spotted B-75 Beast 25535 | -5/Extension | Allies destroyed B-75 Beast 25547 | -5/Extension | Spotted B-75 Beast 25548 | -5/Extension | Destroyed B-75 Beast 25690 | -5/Extension | Rescued a captive Derelict 25957 | -5/Extension | Build established: Scavenger-Gunner 26150 | -5/Extension | Rescued a captive Derelict 26193 | -5/Extension | Rescued a captive Derelict 26250 | -5/Extension | Discovered new exit (range 10) 26575 | -5/Extension | Entered Cetus 26575 | -5/Cetus | Accompanied by 10 allies (A7) 26580 | -5/Cetus | Acquired a Cetus Manufacturing Module code from A7 26608 | -5/Cetus | Destroyed Cetus Guard 26609 | -5/Cetus | Spotted Cetus Guard 26611 | -5/Cetus | Spotted Cetus Guard 26620 | -5/Cetus | Destroyed Cetus Guard 26625 | -5/Cetus | Allies destroyed Cetus Guard 26656 | -5/Cetus | Lost 6 allies 26748 | -5/Cetus | Started Cetus Manufacturing Module 26773 | -5/Cetus | Manufactured an Enhanced Grunt 26777 | -5/Cetus | Discovered new exit (range 15) 26798 | -5/Cetus | Manufactured an Enhanced Grunt 26823 | -5/Cetus | Manufactured an Enhanced Grunt 26848 | -5/Cetus | Manufactured an Enhanced Grunt 26873 | -5/Cetus | Manufactured an Enhanced Grunt 26910 | -5/Cetus | Spotted Cetus Guard 26911 | -5/Cetus | Spotted Cetus Guard 26913 | -5/Cetus | Spotted Cetus Guard 26915 | -5/Cetus | Spotted Cetus Guard 26918 | -5/Cetus | Destroyed Cetus Guard 26919 | -5/Cetus | Allies destroyed Cetus Guard 26930 | -5/Cetus | Allies destroyed Cetus Guard 26935 | -5/Cetus | Allies destroyed Cetus Guard 26949 | -5/Cetus | Discovered new exit (range 16) 26969 | -5/Cetus | Met Revision 17 27133 | -5/Cetus | Murdered A7 27138 | -5/Cetus | Extracted ID and sensor layout for unrecognized location from A7's data core 27171 | -5/Cetus | Entered Archives 27171 | -5/Archives | Accompanied by 6 allies 27172 | -5/Archives | Identified exit to Factory 27172 | -5/Archives | Identified exit to Hub_04(d) 27448 | -5/Archives | Core integrity fell below 50% 27758 | -5/Archives | Build established: Scavenger-Tank 28577 | -5/Archives | Build established: Scavenger-Gunner 28599 | -5/Archives | Entered Hub_04(d) 28599 | -5/Hub_04(d) | Accompanied by 5 allies 28600 | -5/Hub_04(d) | Loaded intel: 97 machine locations 28743 | -5/Hub_04(d) | Spotted B-75 Beast 28752 | -5/Hub_04(d) | Discovered exit to Factory (range 17) 28799 | -5/Hub_04(d) | Allies destroyed B-75 Beast 28931 | -5/Hub_04(d) | Network Hub disabled 28951 | -5/Hub_04(d) | Network Hub disabled 29129 | -5/Hub_04(d) | Spotted Lightning 29133 | -5/Hub_04(d) | Spotted Lightning 29147 | -5/Hub_04(d) | Entered Factory 29147 | -4/Factory | Evolved 2 slots: Utility x1, Weapon x1 29430 | -4/Factory | Build established: Scavenger-Executioner 29513 | -4/Factory | Found Prototype Processor 29513 | -4/Factory | Identified Exp. Signal Interpreter 30147 | -4/Factory | First assault squad dispatched 30308 | -4/Factory | Destroyed 14 combat bots 30413 | -4/Factory | Cargo convoy interrupted 30463 | -4/Factory | System corruption reached 10% 30468 | -4/Factory | Spotted Striker 30472 | -4/Factory | Destroyed Striker 30513 | -4/Factory | Destroyed 9 combat bots 30880 | -4/Factory | High security lockdown imminent 30907 | -4/Factory | Destroyed 12 combat bots 30916 | -4/Factory | Lost 5 parts (1p1n1u2w) 30960 | -4/Factory | High security lockdown engaged 31118 | -4/Factory | Discovered new exit (range 11) 31200 | -4/Factory | Entered Research 31200 | -3/Research | Evolved 2 slots: Propulsion x2 31230 | -3/Research | Lost 5 parts (1p2n2w) 31393 | -3/Research | High security lockdown imminent 31400 | -3/Research | Revision forces began assault on 0b10 31423 | -3/Research | Met up with Revision 17++ 31473 | -3/Research | High security lockdown engaged 31523 | -3/Research | Spotted Striker 31900 | -3/Research | Research terminal network offline 31965 | -3/Research | Spotted Investigator 31966 | -3/Research | Destroyed 7 combat bots 31967 | -3/Research | Scanned by Researcher 31969 | -3/Research | Destroyed Investigator 31999 | -3/Research | Lost 3 parts (1p1u1w) 32044 | -3/Research | Spotted Striker 32056 | -3/Research | Destroyed Striker 32057 | -3/Research | Lost 3 allies 32077 | -3/Research | System corruption reached 10% 32089 | -3/Research | Lost 5 parts (1p1u3w) 32110 | -3/Research | Destroyed 16 combat bots 32201 | -3/Research | Destroyed Revision 17++ 32294 | -3/Research | Spotted Executioner 32309 | -3/Research | Destroyed Executioner 32334 | -3/Research | Spotted Executioner 32354 | -3/Research | Destroyed 15 combat bots 32367 | -3/Research | Discovered new exit (range 14) 32372 | -3/Research | Lost 21 parts (2p6n11u2w) 32388 | -3/Research | Entered another Research area 32388 | -2/Research | Evolved 2 slots: Utility x2 32577 | -2/Research | Identified exit to Quarantine 32678 | -2/Research | First assault squad dispatched 32708 | -2/Research | Identified exit to DSF 32708 | -2/Research | Entered DSF 32719 | -2/DSF | Additional patrols routed to DSF 32727 | -2/DSF | Found Quantum Capacitor 32811 | -2/DSF | Found Prototype Hackware 32811 | -2/DSF | Identified Exp. Hacking Suite 32814 | -2/DSF | Found Exp. Hacking Suite 32817 | -2/DSF | Found Exp. Hacking Suite 32923 | -2/DSF | Sterilization system engaged 32927 | -2/DSF | Lost 3 parts (1n1u1w) 32928 | -2/DSF | Destroyed 9 combat bots 32943 | -2/DSF | Ambient heat levels rising (+10) 32958 | -2/DSF | Ambient heat levels rising (+10) 32973 | -2/DSF | Ambient heat levels rising (+10) 32988 | -2/DSF | Ambient heat levels rising (+10) 33003 | -2/DSF | Ambient heat levels rising (+10) 33014 | -2/DSF | Lost 4 parts (1n2u1w) 33018 | -2/DSF | Ambient heat levels rising (+10) 33033 | -2/DSF | Ambient heat levels rising (+10) 33036 | -2/DSF | Discovered new exit (range 12) 33048 | -2/DSF | Ambient heat levels rising (+10) 33063 | -2/DSF | Ambient heat levels rising (+10) 33063 | -2/DSF | Found Quantum Capacitor 33066 | -2/DSF | Entered Garrison 33103 | -2/Garrison | Found embedded Infiltrators 33172 | -2/Garrison | Triggered checkpoint 33173 | -2/Garrison | Heavy support dispatched to Access 33180 | -2/Garrison | Heavy support dispatched to Access 33217 | -2/Garrison | Build established: Executioner 33486 | -2/Garrison | Installed Relay Interface Framework 33711 | -2/Garrison | Heavy support dispatched to Access 33732 | -2/Garrison | Triggered checkpoint 33780 | -2/Garrison | Triggered checkpoint 33841 | -2/Garrison | System corruption reached 10% 33898 | -2/Garrison | Discovered new exit (range 3) 33994 | -2/Garrison | Garrison Relay disabled 34108 | -2/Garrison | Entered Access 34108 | -1/Access | Evolved 2 slots: Power x1, Utility x1 34287 | -1/Access | Identified exit to Surface 34291 | -1/Access | Build established: Hacker-Executioner 34356 | -1/Access | P-80 Master assimilated allied Artificer 10a 34398 | -1/Access | First assault squad dispatched 34435 | -1/Access | P-80 Master assimilated allied Artificer 10b 34441 | -1/Access | P-80 Master assimilated allied Conveyor 10a 34468 | -1/Access | System corruption reached 10% 34642 | -1/Access | Destroyed 7 combat bots 34958 | *** | Escaped! Last Messages --------------- 34825_ Acquired 5 matter. 34837_ System corrupted: Energy discharge (-306). 34850_ Discarded Exp. Hacking Suite. 34850_ Acquired Unknown Processor. 34850_ Identified Adv. Launcher Guidance Computer. 34855_ Dropped Adv. Remote Datajack. 34856_ Acquired Adv. Coolant Injector. 34858_ ALERT: Rogue bot located, Q-Series report to Access Zone 4W. 34861_ |DZ D85ZBLG 34869_ R-10 Processor collects Adv. Remote Datajack. 34880_ 2&B XDEEZTMYH45EG6I OJ#PROZUF= = 34894_ ALERT: Significant disruption in Zone 3L, assault force dispatched. 34912_ U-05 Engineer builds a Wall. 34913_ System corrupted: Component data lost. 34933_ Connecting with Terminal... >>Open(Door) Sealed Barrier opened. 34933_ ALERT: Suspicious activity at Terminal A001. Dispatching Investigation squad. 34937_ The Access Shell folds into the floor. Map ----- +----------------------------------------------------+ | ?????????????????????????????????# ##?? | | ?????????????????????????????????# #??? | | ?????????????????????????????????# #??? | | ?????????????????????????????????# #??? | | ?????????????????????????????????+ !! #??? | | ?????????????????????????????????# !] #??? | | ?????????????????????????????????# !] #??? | | ?????????????????????????????????# #??? | | ?????????????????????????????????# #??? | | ?????????????????????????????????# #??? | | ??????????????######################/##########??? | | ????????????? p | | ????????????? h | | ????????????????????# ""#####+#+#########?? | | ????????????????????# ""#????hh???????????? | | ????????????????????# ""#?????????????????? | | ????????????????????# T#?????????????????? | | ????????????????????# ""#?????????????????? | | ????????????????????# ""#?????????????????? | | ???????????????????## ""##????????????????? | | ???????????????????# #????????????????? | | ???????????????????## ##????????????????? | | ????????????????????# #?????????????????? | | ????????????????????# #?????????????????? | | ????????????????????# #?????????????????? | | ????????????????????# @" #?????????????????? | | ????????????????????# "" #?????????????????? | | ????????????????????# #?????????????????? | | ????????????????????# #?????????????????? | | ????????????????????# #?????????????????? | | ????????????????????#""""""""""#?????????????????? | | ?????????????????????????????????????????????????? | | ?????????????????????????????????????????????????? | | ?????????????????????????????????????????????????? | | ?????????????????????????????????????????????????? | | ??????????????????????BB????BB???????????????????? | | ??????????????????????BB????BB???????????????????? | | ?????????????????????????????????????????????????? | | ?????????????????????????????????????????????????? | | ?????????????????????????????????????????????????? | | ?????????????????????????????????Y???????????????? | | ?????????????????????????????????????????????????? | | ?????????????????????????????????????????????????? | | ?????????????????????????????????????????????????? | | ?????????????????????????????????????????????????? | | ?????????????????????????????????????????????????? | | ?????????????????????????????????????????????????? | | ?????????????????????????????????????????????????? | | ?????????????????????????????????????????????????? | | ?????????????????????????????????????????????????? | +----------------------------------------------------+ Best States ------------- Heat Dissipation 136 Coolant Potential 220 Energy Generation 83 Energy Capacity 850 Matter Stores 300 Matter Capacity 300 Sight Range 16 Terrain Scan Range 20 Terrain Scan Density 10 Jamming Range 14 Power Amplification 30 Armor Coverage 1200 Resistance: EM 20 Utility Shielding 66 Weapon Cycling 20 Evasion (%) 50 Launcher Accuracy 40 Core Analysis 6 Recoil Reduction 6 Kinecelleration 40 Offensive Hacking 32 Relay Coupler Types 1 Relay Coupler Value 32 Item Schematics ----------------- Enh. Autogun | -8/Materials | Scanalyzed Huge Storage Unit | -7/Factory | Hacked Robot Schematics ------------------ M-13 Machinist | -10/Mines | Hacked Fabricated ------------ Huge Storage Unit | x1 | -7/Factory Enh. Autogun | x1 | -7/Factory Enh. Autogun | x1 | -7/Factory Helical Railgun | x1 | -5/Factory | Preloaded Alien Tech Used ----------------- None Achievements -------------- None Challenges ------------ None Game ------ Seed FissionRiotKatana Manual? 0 Play Time 03:12:12 Cumulative 509.6 hours Start 2024.09.14 @ 10:18:34 End 2024.09.15 @ 08:31:09 Sessions 7 Manual Loads 0 Difficulty Rogue Special Mode None Game No. 299 Rogue 299 Adventurer 0 Explorer 0 Win Type 0 Total 37 Types 26/3/4/1/1/0/1/1/0 Lore% 81 Gallery% 85 Achievement% 85 Wizard Run 0 Options --------- Layout 0 ASCII 0 Keyboard 1 Movement Numpad Keybinds 0 Fullscreen 2 Font 18/SmallcapsGlow Map View 76x50 Zoom Use 0% Tactical HUD 1 Map Filters NONE Filters NONE Steam 1 RUN: e3b216a0-1de5-422a-a509-abe14f0235d7